fUSD/lending_fUSD_20250109
["ID","MTS","AMOUNT","RATE_DAILY","PERIOD"]
[348202840,1736386240949,-500.0,9.998e-05,2]
[348202842,1736386240959,-500.0,9.998e-05,2]
[348202844,1736386240968,-524.41,9.998e-05,2]
[348202846,1736386240977,-500.0,9.998e-05,2]
[348202848,1736386240987,-500.0,9.998e-05,2]
[348202850,1736386240996,-500.0,9.998e-05,2]
[348202852,1736386241005,-500.0,9.998e-05,2]
[348202854,1736386241015,-500.0,9.998e-05,2]
[348202856,1736386241025,-500.0,9.998e-05,2]
[348202858,1736386241034,-500.0,9.998e-05,2]
[348202860,1736386241044,-500.0,9.998e-05,2]
[348202862,1736386241054,-500.0,9.998e-05,2]
[348202864,1736386241063,-500.0,9.998e-05,2]
[348202865,1736386241074,-500.0,9.998e-05,2]
[348202867,1736386241083,-500.0,9.998e-05,2]
[348202869,1736386241092,-12722.56224138,9.998e-05,2]
[348202871,1736386241101,-500.0,9.998e-05,2]
[348202873,1736386241111,-500.0,9.998e-05,2]
[348202875,1736386241120,-500.0,9.998e-05,2]
[348202876,1736386241131,-500.0,9.998e-05,2]
[348202878,1736386241140,-500.0,9.998e-05,2]
[348202881,1736386241149,-500.0,9.998e-05,2]
[348202884,1736386241159,-1674.16,9.998e-05,2]
[348202887,1736386241168,-500.0,9.998e-05,2]
[348202889,1736386241176,-500.0,9.998e-05,2]
[348202891,1736386241186,-500.0,9.998e-05,2]
[348202893,1736386241197,-500.0,9.998e-05,2]
[348202895,1736386241206,-500.0,9.998e-05,2]
[348202898,1736386241216,-500.0,9.998e-05,2]
[348202900,1736386241225,-500.0,9.998e-05,2]
[348202902,1736386241235,-500.0,9.998e-05,2]
[348202904,1736386241244,-500.0,9.998e-05,2]
[348202906,1736386241254,-500.0,9.998e-05,2]
[348202908,1736386241268,-500.0,9.998e-05,2]
[348202910,1736386241277,-647.71,9.998e-05,2]
[348202912,1736386241286,-500.0,9.998e-05,2]
[348202914,1736386241295,-500.0,9.998e-05,2]
[348202916,1736386241305,-500.0,9.998e-05,2]
[348202918,1736386241314,-500.0,9.998e-05,2]
[348202920,1736386241324,-500.0,9.998e-05,2]
[348202922,1736386241334,-500.0,9.998e-05,2]
[348202924,1736386241344,-500.0,9.998e-05,2]
[348202926,1736386241354,-1557.85,9.998e-05,2]
[348202928,1736386241363,-500.0,9.998e-05,2]
[348202930,1736386241372,-507.74,9.998e-05,2]
[348202932,1736386241382,-500.0,9.998e-05,2]
[348202934,1736386241391,-500.0,9.998e-05,2]
[348202936,1736386241400,-1907.13,9.998e-05,2]
[348202938,1736386241410,-500.0,9.998e-05,2]
[348202940,1736386241419,-500.0,9.998e-05,2]
[348202942,1736386241429,-500.0,9.998e-05,2]
[348202944,1736386241438,-500.0,9.998e-05,2]
[348202946,1736386241447,-500.0,9.998e-05,2]
[348202948,1736386241456,-500.0,9.998e-05,2]
[348202950,1736386241465,-500.0,9.998e-05,2]
[348202952,1736386241475,-500.0,9.998e-05,2]
[348202954,1736386241484,-500.0,9.998e-05,2]
[348202956,1736386241494,-500.0,9.998e-05,2]
[348202958,1736386241503,-500.0,9.998e-05,2]
[348202960,1736386241512,-500.0,9.998e-05,2]
[348202962,1736386241521,-500.0,9.998e-05,2]
[348202964,1736386241531,-500.0,9.998e-05,2]
[348202966,1736386241540,-500.0,9.998e-05,2]
[348202968,1736386241549,-500.0,9.998e-05,2]
[348202970,1736386241559,-500.0,9.998e-05,2]
[348202972,1736386241568,-500.0,9.998e-05,2]
[348202974,1736386241577,-500.0,9.998e-05,2]
[348202976,1736386241587,-500.0,9.998e-05,2]
[348202978,1736386241596,-500.0,9.998e-05,2]
[348202980,1736386241605,-500.0,9.998e-05,2]
[348202982,1736386241615,-500.0,9.998e-05,2]
[348202984,1736386241623,-500.0,9.998e-05,2]
[348202986,1736386241634,-500.0,9.998e-05,2]
[348202988,1736386241644,-500.0,9.998e-05,2]
[348202990,1736386241653,-500.0,9.998e-05,2]
[348202992,1736386241662,-500.0,9.998e-05,2]
[348202994,1736386241671,-576.1,9.998e-05,2]
[348202996,1736386241681,-500.0,9.998e-05,2]
[348202998,1736386241690,-500.0,9.998e-05,2]
[348203000,1736386241699,-853.37,9.998e-05,2]
[348203002,1736386241709,-500.0,9.998e-05,2]
[348203004,1736386241718,-519.76,9.998e-05,2]
[348203006,1736386241727,-500.0,9.998e-05,2]
[348203008,1736386241735,-1079.44,9.998e-05,2]
[348203010,1736386241745,-500.0,9.998e-05,2]
[348203011,1736386241755,-500.0,9.998e-05,2]
[348203014,1736386241764,-500.0,9.998e-05,2]
[348203016,1736386241774,-623.71,9.998e-05,2]
[348203017,1736386241783,-500.0,9.998e-05,2]
[348203019,1736386241793,-500.0,9.998e-05,2]
[348203021,1736386241802,-500.0,9.998e-05,2]
[348203023,1736386241812,-500.0,9.998e-05,2]
[348203026,1736386241822,-500.0,9.998e-05,2]
[348203027,1736386241831,-935.71,9.998e-05,2]
[348203029,1736386241841,-500.0,9.998e-05,2]
[348203031,1736386241850,-500.0,9.998e-05,2]
[348203033,1736386241859,-500.0,9.998e-05,2]
[348203035,1736386241868,-507.62961942,9.998e-05,2]
[348203037,1736386241877,-506.90531012,9.998e-05,2]
[348203040,1736386241889,-500.0,9.998e-05,2]
[348203042,1736386241899,-500.0,9.998e-05,2]
[348203044,1736386241908,-500.0,9.998e-05,2]
[348203046,1736386241918,-500.0,9.998e-05,2]
[348203048,1736386241927,-500.0,9.999e-05,2]
[348203050,1736386241937,-500.0,9.999e-05,2]
[348203051,1736386241945,-500.0,9.999e-05,2]
[348203054,1736386241955,-500.0,9.999e-05,2]
[348203055,1736386241965,-500.0,9.999e-05,2]
[348203058,1736386241974,-500.0,9.999e-05,2]
[348203059,1736386241983,-500.0,9.999e-05,2]
[348203061,1736386241992,-500.0,9.999e-05,2]
[348203063,1736386242002,-500.0,9.999e-05,2]
[348203065,1736386242011,-500.0,9.999e-05,2]
[348203067,1736386242020,-500.0,9.999e-05,2]
[348203069,1736386242029,-500.0,9.999e-05,2]
[348203071,1736386242038,-500.0,9.999e-05,2]
[348203073,1736386242048,-500.0,9.999e-05,2]
[348203075,1736386242057,-500.0,9.999e-05,2]
[348203077,1736386242067,-500.0,9.999e-05,2]
[348203080,1736386242078,-500.0,9.999e-05,2]
[348203082,1736386242088,-500.0,9.999e-05,2]
[348203083,1736386242097,-500.0,9.999e-05,2]
[348203085,1736386242107,-500.0,9.999e-05,2]
[348203087,1736386242116,-500.0,9.999e-05,2]
[348203089,1736386242125,-411.58474325,9.999e-05,2]
[348203092,1736386242135,-500.0,9.999e-05,2]
[348203094,1736386242144,-500.0,9.999e-05,2]
[348203096,1736386242154,-500.0,9.999e-05,2]
[348203097,1736386242163,-500.0,9.999e-05,2]
[348203099,1736386242172,-500.0,9.999e-05,2]
[348203101,1736386242182,-500.0,9.999e-05,2]
[348203104,1736386242192,-500.0,9.999e-05,2]
[348203106,1736386242201,-500.0,9.999e-05,2]
[348203107,1736386242211,-500.0,9.999e-05,2]
[348203110,1736386242220,-500.0,9.999e-05,2]
[348203112,1736386242229,-500.0,9.999e-05,2]
[348203114,1736386242238,-500.0,9.999e-05,2]
[348203116,1736386242248,-500.0,9.999e-05,2]
[348203117,1736386242261,-500.0,9.999e-05,2]
[348203120,1736386242271,-500.0,9.999e-05,2]
[348203122,1736386242280,-500.0,9.999e-05,2]
[348203124,1736386242289,-500.0,9.999e-05,2]
[348203126,1736386242299,-500.0,9.999e-05,2]
[348203127,1736386242308,-500.0,9.999e-05,2]
[348203130,1736386242317,-500.0,9.999e-05,2]
[348203132,1736386242327,-550.070067,9.999e-05,2]
[348203134,1736386242339,-500.0,9.999e-05,2]
[348203136,1736386242349,-500.0,9.999e-05,2]
[348203138,1736386242358,-513.4,9.999e-05,2]
[348203140,1736386242367,-500.0,9.999e-05,2]
[348203142,1736386242377,-500.0,9.999e-05,2]
[348203144,1736386242387,-500.0,9.999e-05,2]
[348203146,1736386242396,-500.0,9.999e-05,2]
[348203148,1736386242405,-500.0,9.999e-05,2]
[348203150,1736386242414,-500.0,9.999e-05,2]
[348203152,1736386242424,-500.0,9.999e-05,2]
[348203154,1736386242433,-500.0,9.999e-05,2]
[348203156,1736386242443,-500.0,9.999e-05,2]
[348203158,1736386242452,-500.0,9.999e-05,2]
[348203160,1736386242462,-500.0,9.999e-05,2]
[348203162,1736386242471,-500.0,9.999e-05,2]
[348203164,1736386242480,-500.0,9.999e-05,2]
[348203166,1736386242489,-500.0,9.999e-05,2]
[348203168,1736386242499,-500.0,9.999e-05,2]
[348203170,1736386242508,-500.0,9.999e-05,2]
[348203172,1736386242518,-500.0,9.999e-05,2]
[348203174,1736386242527,-500.0,9.999e-05,2]
[348203176,1736386242536,-500.0,9.999e-05,2]
[348203178,1736386242546,-521.7,9.999e-05,2]
[348203180,1736386242555,-517.07,9.999e-05,2]
[348203182,1736386242564,-500.0,9.999e-05,2]
[348203184,1736386242574,-500.0,9.999e-05,2]
[348203186,1736386242583,-500.0,9.999e-05,2]
[348203188,1736386242592,-500.0,9.999e-05,2]
[348203190,1736386242602,-500.0,9.999e-05,2]
[348203192,1736386242611,-500.0,9.999e-05,2]
[348203194,1736386242621,-500.0,9.999e-05,2]
[348203195,1736386242630,-500.0,9.999e-05,2]
[348203196,1736386242640,-500.0,9.999e-05,2]
[348203197,1736386242649,-500.0,9.999e-05,2]
[348203198,1736386242659,-500.0,9.999e-05,2]
[348203199,1736386242668,-500.0,9.999e-05,2]
[348203200,1736386242678,-500.0,9.999e-05,2]
[348203201,1736386242687,-500.0,9.999e-05,2]
[348203202,1736386242696,-500.0,9.999e-05,2]
[348203204,1736386242705,-500.0,9.999e-05,2]
[348203205,1736386242715,-500.0,9.999e-05,2]
[348203207,1736386242724,-500.0,9.999e-05,2]
[348203209,1736386242733,-500.0,9.999e-05,2]
[348203211,1736386242743,-500.0,9.999e-05,2]
[348203213,1736386242752,-500.0,9.999e-05,2]
[348203215,1736386242761,-500.0,9.999e-05,2]
[348203217,1736386242770,-500.0,9.999e-05,2]
[348203219,1736386242780,-500.0,9.999e-05,2]
[348203221,1736386242789,-500.0,9.999e-05,2]
[348203223,1736386242798,-500.0,9.999e-05,2]
[348203225,1736386242807,-500.0,9.999e-05,2]
[348203227,1736386242816,-500.0,9.999e-05,2]
[348203229,1736386242825,-335.0458917,9.999e-05,2]
[348203231,1736386242834,-500.0,9.999e-05,2]
[348203233,1736386242843,-584.23,9.999e-05,2]
[348203235,1736386242852,-523.76,9.999e-05,2]
[348203237,1736386242862,-500.0,9.999e-05,2]
[348203239,1736386242871,-500.0,9.999e-05,2]
[348203241,1736386242881,-500.0,9.999e-05,2]
[348203243,1736386242890,-500.0,9.999e-05,2]
[348203245,1736386242899,-500.0,9.999e-05,2]
[348203247,1736386242908,-500.0,9.999e-05,2]
[348203249,1736386242917,-500.0,9.999e-05,2]
[348203251,1736386242926,-500.0,9.999e-05,2]
[348203252,1736386242935,-500.0,9.999e-05,2]
[348203253,1736386242944,-500.0,9.999e-05,2]
[348203254,1736386242952,-445.377666,9.999e-05,2]
[348203255,1736386242961,-500.0,9.999e-05,2]
[348203256,1736386242970,-603.29051024,9.999e-05,2]
[348203257,1736386242979,-500.0,9.999e-05,2]
[348203258,1736386242988,-500.0,9.999e-05,2]
[348203260,1736386242997,-500.0,9.999e-05,2]
[348203262,1736386243006,-500.0,9.999e-05,2]
[348203264,1736386243015,-505.00147164,9.999e-05,2]
[348203266,1736386243024,-500.0,9.999e-05,2]
[348203268,1736386243034,-500.0,9.999e-05,2]
[348203269,1736386243043,-500.0,9.999e-05,2]
[348203271,1736386243051,-500.0,9.999e-05,2]
[348203273,1736386243061,-500.0,9.999e-05,2]
[348203275,1736386243070,-500.0,9.999e-05,2]
[348203277,1736386243080,-500.0,9.999e-05,2]
[348203279,1736386243089,-500.0,9.999e-05,2]
[348203281,1736386243099,-500.0,9.999e-05,2]
[348203283,1736386243108,-500.0,9.999e-05,2]
[348203285,1736386243117,-500.0,9.999e-05,2]
[348203287,1736386243126,-500.0,9.999e-05,2]
[348203289,1736386243136,-500.0,9.999e-05,2]
[348203291,1736386243145,-500.0,9.999e-05,2]
[348203293,1736386243154,-500.0,9.999e-05,2]
[348203295,1736386243163,-500.0,9.999e-05,2]
[348203297,1736386243172,-500.0,9.999e-05,2]
[348203299,1736386243182,-500.0,9.999e-05,2]
[348203301,1736386243191,-500.0,9.999e-05,2]
[348203303,1736386243200,-500.0,9.999e-05,2]
[348203305,1736386243209,-500.0,9.999e-05,2]
[348203307,1736386243219,-500.0,9.999e-05,2]
[348203309,1736386243228,-500.0,9.999e-05,2]
[348203311,1736386243238,-500.0,9.999e-05,2]
[348203313,1736386243247,-500.0,9.999e-05,2]
[348203315,1736386243260,-500.0,9.999e-05,2]
[348203317,1736386243269,-500.0,9.999e-05,2]
[348203319,1736386243278,-500.0,9.999e-05,2]
[348203321,1736386243287,-500.0,9.999e-05,2]
[348203323,1736386243298,-500.0,9.999e-05,2]
[348203325,1736386243307,-500.0,9.999e-05,2]
[348203327,1736386243316,-500.0,9.999e-05,2]
[348203329,1736386243325,-512.26,9.999e-05,2]
[348203331,1736386243335,-500.0,9.999e-05,2]
[348203333,1736386243345,-500.0,9.999e-05,2]
[348203335,1736386243355,-500.0,9.999e-05,2]
[348203337,1736386243364,-500.0,9.999e-05,2]
[348203339,1736386243373,-500.0,9.999e-05,2]
[348203341,1736386243383,-500.0,9.999e-05,2]
[348203343,1736386243392,-500.0,9.999e-05,2]
[348203345,1736386243401,-500.0,9.999e-05,2]
[348203347,1736386243411,-500.0,9.999e-05,2]
[348203349,1736386243420,-500.0,9.999e-05,2]
[348203351,1736386243430,-500.0,9.999e-05,2]
[348203353,1736386243439,-500.0,9.999e-05,2]
[348203354,1736386243448,-500.0,9.999e-05,2]
[348203356,1736386243457,-500.0,9.999e-05,2]
[348203358,1736386243467,-500.0,9.999e-05,2]
[348203360,1736386243476,-193.65,9.999e-05,2]
[348203363,1736386243486,-500.0,9.999e-05,2]
[348203366,1736386243495,-500.0,9.999e-05,2]
[348203369,1736386243504,-500.0,9.999e-05,2]
[348203372,1736386243513,-500.0,9.999e-05,2]
[348203375,1736386243523,-500.0,9.999e-05,2]
[348203377,1736386243533,-500.0,9.999e-05,2]
[348203379,1736386243542,-500.0,9.999e-05,2]
[348203381,1736386243551,-500.0,9.999e-05,2]
[348203383,1736386243561,-500.0,9.999e-05,2]
[348203385,1736386243570,-500.0,9.999e-05,2]
[348203387,1736386243579,-291.18317761,9.999e-05,2]
[348203388,1736386243590,-390.26731615,9.999e-05,2]
[348203390,1736386243600,-500.0,9.999e-05,2]
[348203392,1736386243609,-500.0,9.999e-05,2]
[348203394,1736386243618,-500.0,9.999e-05,2]
[348203396,1736386243627,-500.0,9.999e-05,2]
[348203398,1736386243638,-500.0,9.999e-05,2]
[348203400,1736386243648,-500.0,9.999e-05,2]
[348203402,1736386243657,-500.0,9.999e-05,2]
[348203404,1736386243666,-500.0,9.999e-05,2]
[348203406,1736386243675,-500.0,9.999e-05,2]
[348203409,1736386243685,-500.0,9.999e-05,2]
[348203411,1736386243694,-500.0,9.999e-05,2]
[348203412,1736386243703,-220.62720128,9.999e-05,2]
[348203414,1736386243712,-742.77,9.999e-05,2]
[348203416,1736386243721,-500.0,9.999e-05,2]
[348203417,1736386243730,-500.0,9.999e-05,2]
[348203418,1736386243739,-500.0,9.999e-05,2]
[348203419,1736386243749,-500.0,9.999e-05,2]
[348203420,1736386243758,-500.0,9.999e-05,2]
[348203421,1736386243767,-500.0,9.999e-05,2]
[348203422,1736386243777,-500.0,9.999e-05,2]
[348203424,1736386243786,-500.0,9.999e-05,2]
[348203426,1736386243796,-500.0,9.999e-05,2]
[348203427,1736386243805,-593.83,9.999e-05,2]
[348203428,1736386243815,-500.0,9.999e-05,2]
[348203429,1736386243824,-500.0,9.999e-05,2]
[348203430,1736386243834,-500.0,9.999e-05,2]
[348203431,1736386243843,-302.55963817,9.999e-05,2]
[348203432,1736386243852,-933.59,9.999e-05,2]
[348203433,1736386243861,-500.0,9.999e-05,2]
[348203434,1736386243872,-500.0,9.999e-05,2]
[348203435,1736386243881,-500.0,9.999e-05,2]
[348203436,1736386243891,-500.0,9.999e-05,2]
[348203437,1736386243900,-500.0,9.999e-05,2]
[348203438,1736386243909,-533.22,9.999e-05,2]
[348203439,1736386243919,-500.0,9.999e-05,2]
[348203440,1736386243928,-500.0,9.999e-05,2]
[348203443,1736386243937,-500.0,9.999e-05,2]
[348203446,1736386243946,-500.0,9.999e-05,2]
[348203448,1736386243955,-500.0,9.999e-05,2]
[348203450,1736386243965,-572.5,9.999e-05,2]
[348203452,1736386243974,-500.0,9.999e-05,2]
[348203454,1736386243984,-784.97,9.999e-05,2]
[348203456,1736386243994,-500.0,9.999e-05,2]
[348203457,1736386244004,-500.0,9.999e-05,2]
[348203458,1736386244013,-500.0,9.999e-05,2]
[348203459,1736386244023,-500.0,9.999e-05,2]
[348203460,1736386244032,-500.0,9.999e-05,2]
[348203461,1736386244042,-500.0,9.999e-05,2]
[348203462,1736386244051,-500.0,9.999e-05,2]
[348203464,1736386244060,-500.0,9.999e-05,2]
[348203465,1736386244070,-574.9,9.999e-05,2]
[348203466,1736386244080,-500.0,9.999e-05,2]
[348203467,1736386244090,-500.0,9.999e-05,2]
[348203468,1736386244099,-500.0,9.999e-05,2]
[348203469,1736386244108,-1418.12,9.999e-05,2]
[348203470,1736386244118,-500.0,9.999e-05,2]
[348203471,1736386244127,-217.12,9.999e-05,2]
[348203472,1736386244137,-1093.99,9.999e-05,2]
[348203473,1736386244146,-500.0,9.999e-05,2]
[348203474,1736386244155,-500.0,9.999e-05,2]
[348203475,1736386244165,-500.0,9.999e-05,2]
[348203476,1736386244174,-500.0,9.999e-05,2]
[348203477,1736386244183,-500.0,9.999e-05,2]
[348203478,1736386244192,-500.0,9.999e-05,2]
[348203479,1736386244202,-884.01,9.999e-05,2]
[348203480,1736386244211,-500.0,9.999e-05,2]
[348203481,1736386244221,-2049.07,9.999e-05,2]
[348203482,1736386244231,-500.0,9.999e-05,2]
[348203483,1736386244241,-500.0,9.999e-05,2]
[348203484,1736386244250,-500.0,9.999e-05,2]
[348203485,1736386244264,-500.0,9.999e-05,2]
[348203487,1736386244273,-2571.17,9.999e-05,2]
[348203489,1736386244282,-500.0,9.999e-05,2]
[348203490,1736386244291,-500.0,9.999e-05,2]
[348203492,1736386244301,-500.0,9.999e-05,2]
[348203494,1736386244311,-500.0,9.999e-05,2]
[348203495,1736386244320,-500.0,9.999e-05,2]
[348203496,1736386244329,-628.42,9.999e-05,2]
[348203497,1736386244339,-602.23,9.999e-05,2]
[348203498,1736386244348,-500.0,9.999e-05,2]
[348203499,1736386244357,-500.0,9.999e-05,2]
[348203500,1736386244367,-500.0,9.999e-05,2]
[348203501,1736386244376,-500.0,9.999e-05,2]
[348203502,1736386244387,-500.0,9.999e-05,2]
[348203503,1736386244397,-500.0,9.999e-05,2]
[348203504,1736386244406,-500.0,9.999e-05,2]
[348203505,1736386244416,-1145.97,9.999e-05,2]
[348203506,1736386244426,-500.0,9.999e-05,2]
[348203507,1736386244435,-564.26,9.999e-05,2]
[348203508,1736386244445,-500.0,9.999e-05,2]
[348203509,1736386244454,-281.62316671,9.999e-05,2]
[348203510,1736386244465,-500.0,9.999e-05,2]
[348203511,1736386244475,-1045.86359087,9.999e-05,3]
[348203512,1736386244485,-458.39,9.999e-05,2]
[348203513,1736386244495,-869.55,9.999e-05,2]
[348203514,1736386244504,-500.0,9.999e-05,2]
[348203515,1736386244514,-500.0,9.999e-05,2]
[348203516,1736386244530,-500.0,9.999e-05,2]
[348203517,1736386244540,-512.42,9.999e-05,2]
[348203518,1736386244549,-500.0,9.999e-05,2]
[348203519,1736386244559,-550.03,9.999e-05,2]
[348203520,1736386244569,-1686.02,9.999e-05,2]
[348203521,1736386244742,-393.84,9.999e-05,2]
[348203522,1736386244752,-500.0,9.999e-05,2]
[348203523,1736386244761,-500.0,9.999e-05,2]
[348203524,1736386244771,-500.0,9.999e-05,2]
[348203525,1736386244780,-1275.23,9.999e-05,2]
[348203526,1736386244790,-500.0,9.999e-05,2]
[348203527,1736386244800,-504.50940732,9.999e-05,2]
[348203528,1736386244809,-681.74,9.999e-05,2]
[348203529,1736386244819,-659.61,9.999e-05,2]
[348203530,1736386244828,-500.0,9.999e-05,2]
[348203531,1736386244837,-500.0,9.999e-05,2]
[348203532,1736386244846,-161.3091848,9.999e-05,2]
[348203533,1736386244856,-500.0,9.999e-05,2]
[348203534,1736386244865,-1112370.18422263,0.0001,2]
[348203535,1736386244874,-3118.57761012,0.0001,2]
[348203536,1736386244884,-1687.37422237,0.0001,2]
[348203537,1736386244893,-737398.63241829,0.0001,2]
[348203538,1736386244903,-162.96456389,0.0001,2]
[348203539,1736386244912,-218.32881193,0.0001,2]
[348203540,1736386244921,-2000.0,0.0001,2]
[348203541,1736386244931,-200.0,0.0001,2]
[348203542,1736386244940,-180070.58260952,0.0001,2]
[348203543,1736386244949,-200.0,0.0001,4]
[348203544,1736386244958,-200.0,0.0001,5]
[348203545,1736386244968,-200.0,0.0001,6]
[348203546,1736386244977,-200.0,0.0001,4]
[348203547,1736386244987,-169.78,0.0001,4]
[348203548,1736386244997,-286586.32,0.0001,2]
[348203549,1736386245007,-214.73506021,0.0001,2]
[348203550,1736386245017,-166.39605659,0.0001,2]
[348203551,1736386245027,-8535654.35954289,0.0001,2]
[348203552,1736386245274,-284520.55266441,0.0001,2]
[348203553,1736386245299,-10985.55453406,0.0001,2]
[348203554,1736386245483,-500.0,9.997e-05,2]
[348203555,1736386245493,-152.01062997,9.997e-05,2]
[348203556,1736386245505,-359.75909615,9.997e-05,2]
[348203557,1736386245515,-1.68090402,0.0001,2]
[348203558,1736386245527,-8790.201,0.0001,2]
[348203559,1736386245539,-605.74425426,0.0001,2]
[348203560,1736386245551,-264.79672554,0.0001,2]
[348203561,1736386245613,-468.60346819,0.0001,2]
[348203562,1736386245625,-1906.35,0.0001,2]
[348203563,1736386245942,-311.95660546,9.997e-05,2]
[348203564,1736386246057,-209.13488761,9.997e-05,2]
[348203565,1736386246067,-641.83,9.998e-05,2]
[348203566,1736386246077,-507.37154539,9.999e-05,2]
[348203567,1736386246086,-3414.19211701,0.0001,2]
[348203568,1736386246098,-3703.88611207,0.0001,2]
[348203569,1736386246121,-7786.16367788,0.0001,2]
[348203570,1736386246132,-9836.2,0.0001,2]
[348203571,1736386246145,-2333.75951452,0.0001,2]
[348203572,1736386246156,-9146.90009583,0.0001,2]
[348203573,1736386246563,-508.9957008,9.997e-05,2]
[348203575,1736386246572,-506.11890585,9.999e-05,2]
[348203576,1736386246582,-1959.43616482,0.0001,2]
[348203579,1736386246719,-29344.86269329,0.0001,2]
[348203580,1736386246730,-2403.84686437,0.0001,2]
[348203581,1736386246742,-4771.7621,0.0001,2]
[348203582,1736386246753,-2895.07230852,0.0001,2]
[348203583,1736386246765,-5114.68202308,0.0001,2]
[348203584,1736386246875,-739.671769,0.0001,2]
[348203585,1736386246887,-160653.90233791,0.0001,2]
[348203592,1736386398675,845.95,8.219e-05,2]
[348203593,1736386430191,177.54,0.0002,120]
[348203597,1736387097759,500.000001,0.0002,120]
[348203606,1736387264925,803.65,8.219e-05,2]
[348203609,1736387382762,214.95,0.0002001,120]
[348203612,1736387432217,-250.0,9.038e-05,2]
[348203613,1736387432228,-250.0,9.155e-05,2]
[348203614,1736387432237,-400.9999972,9.179e-05,2]
[348203615,1736387432273,-241.5400028,9.179e-05,2]
[348203616,1736387432283,-1000.0,9.214e-05,2]
[348203617,1736387432292,-150.0,9.468e-05,2]
[348203618,1736387432301,-150.50943374,9.468e-05,2]
[348203619,1736387432329,-0.14071287,9.468e-05,2]
[348203622,1736387432338,-696.683,9.5e-05,2]
[348203624,1736387432350,-3585.26402028,9.589e-05,2]
[348204138,1736387437701,-271.93597972,9.589e-05,2]
[348204140,1736387437711,-150.0,9.781e-05,2]
[348204142,1736387437720,-238.06402028,9.798e-05,2]
[348204144,1736387437731,-61.93597972,9.798e-05,2]
[348204147,1736387437740,-500.0,9.799e-05,2]
[348204150,1736387437750,-1716.29,9.799e-05,2]
[348204152,1736387437759,-500.0,9.799e-05,2]
[348204154,1736387437768,-500.0,9.799e-05,2]
[348204156,1736387437779,-500.0,9.799e-05,2]
[348204158,1736387437789,-738.61,9.799e-05,2]
[348204159,1736387437798,-150.0,9.819e-05,2]
[348204161,1736387437807,-206.46,9.891e-05,2]
[348204163,1736387437816,-150.0,9.891e-05,2]
[348204164,1736387437826,-693.93,9.891e-05,2]
[348204165,1736387437835,-979.45,9.891e-05,2]
[348204166,1736387437843,-223.5572,9.899e-05,2]
[348204167,1736387437856,-8038.9919,9.9e-05,2]
[348204168,1736387437865,-1655.8416,9.9e-05,2]
[348204169,1736387437874,-3109.96814837,9.9e-05,2]
[348204170,1736387437885,-2025.81297828,9.9e-05,2]
[348204171,1736387437908,-1739.72077335,9.9e-05,2]
[348204172,1736387437918,-561.97922665,9.9e-05,2]
[348204173,1736387437928,-4438.02077335,9.9e-05,2]
[348204174,1736387437937,-346.91042057,9.909e-05,2]
[348204176,1736387437947,-863.18529886,9.91e-05,2]
[348204177,1736387437956,-2575.066,9.91e-05,2]
[348204179,1736387437967,-175.597,9.91e-05,2]
[348204181,1736387437976,-151.82465717,9.973e-05,2]
[348204183,1736387437985,-500.0,9.973e-05,2]
[348204185,1736387437994,-1358.72,9.997e-05,2]
[348204187,1736387438003,-500.0,9.997e-05,2]
[348204189,1736387438012,-521.7,9.997e-05,2]
[348204191,1736387438022,-500.0,9.997e-05,2]
[348204193,1736387438032,-508.08364678,9.997e-05,2]
[348204195,1736387438041,-378.77695803,9.997e-05,2]
[348204197,1736387438050,-500.0,9.997e-05,2]
[348204199,1736387438059,-500.0,9.997e-05,2]
[348204201,1736387438069,-500.0,9.997e-05,2]
[348204203,1736387438079,-500.0,9.997e-05,2]
[348204205,1736387438088,-503.52965271,9.997e-05,2]